fUSD/lending_fUSD_20240407
["ID","MTS","AMOUNT","RATE_DAILY","PERIOD"]
[321800562,1712529039599,-7709.0,0.0002,2]
[321800563,1712529039608,-159970.0,0.0002,2]
[321800564,1712529039618,-505.78,0.00020011,2]
[321800565,1712529039628,-505.78,0.00020064,2]
[321800566,1712529039638,-164.9,0.00020074,2]
[321800567,1712529039647,-10578.97897765,0.00020117,2]
[321800568,1712529039656,-505.78,0.00020117,2]
[321800569,1712529039665,-505.78,0.00020169,2]
[321800570,1712529039674,-505.78,0.00020222,2]
[321800571,1712529039683,-6285.85789327,0.00020258,2]
[321800572,1712529039693,-10578.97897765,0.00020273,2]
[321800573,1712529039702,-800.0,0.00020387,2]
[321800574,1712529039711,-10578.97897765,0.0002043,2]
[321800575,1712529039721,-150.0,0.000205,2]
[321800576,1712529039730,-2718.26,0.00020505,2]
[321800577,1712529039739,-6285.85789327,0.00020579,2]
[321800578,1712529039749,-10578.97897765,0.00020587,2]
[321800579,1712529039758,-10578.97897765,0.00020743,2]
[321800580,1712529039768,-1316.08796977,0.00020747,2]
[321800581,1712529039777,-178.43504475,0.0002079,2]
[321800582,1712529039787,-155.13990686,0.00020829,2]
[321800583,1712529039796,-442.82287357,0.00020841,2]
[321800584,1712529039805,-198.33856584,0.00020894,2]
[321800585,1712529039815,-304.21971482,0.00020895,2]
[321800586,1712529039824,-198.33856584,0.00020897,2]
[321800587,1712529039834,-108706.4775,0.00020898,2]
[321800588,1712529039844,-529.0,0.000209,2]
[321800589,1712529039853,-10578.97897765,0.000209,2]
[321800590,1712529039863,-198.33856584,0.000209,2]
[321800591,1712529039872,-6285.85789327,0.000209,2]
[321800592,1712529039883,-389.96389093,0.000209,2]
[321800593,1712529039892,-312.54704425,0.00020905,2]
[321800594,1712529039901,-155.0,0.00020905,2]
[321800595,1712529039911,-233.20418876,0.00020905,2]
[321800596,1712529039920,-445.59848386,0.00020905,2]
[321800597,1712529039930,-203.73515765,0.00020905,2]
[321800598,1712529039939,-155.0,0.00020906,2]
[321800599,1712529039948,-157.040807,0.00020908,2]
[321800600,1712529039957,-157.040807,0.00020908,2]
[321800601,1712529039966,-157.040807,0.00020908,2]
[321800602,1712529039976,-157.040807,0.00020908,2]
[321800603,1712529039985,-157.040807,0.00020908,2]
[321800604,1712529039994,-157.040807,0.00020908,2]
[321800605,1712529040004,-157.040807,0.00020908,2]
[321800606,1712529040014,-157.040807,0.00020908,2]
[321800607,1712529040024,-157.040807,0.00020908,2]
[321800608,1712529040033,-157.040807,0.00020908,2]
[321800609,1712529040042,-157.040807,0.00020908,2]
[321800610,1712529040051,-157.040807,0.00020908,2]
[321800611,1712529040061,-157.040807,0.00020908,2]
[321800612,1712529040070,-157.040807,0.00020908,2]
[321800613,1712529040079,-157.040807,0.00020908,2]
[321800614,1712529040088,-157.040807,0.00020908,2]
[321800615,1712529040097,-157.040807,0.00020908,2]
[321800616,1712529040106,-157.040807,0.00020908,2]
[321800617,1712529040115,-157.040807,0.00020908,2]
[321800618,1712529040125,-157.040807,0.00020908,2]
[321800619,1712529040134,-157.040807,0.00020908,2]
[321800620,1712529040144,-99342.7665769,0.00020986,2]
[321800621,1712529040153,-160541.0,0.00020986,2]
[321800622,1712529040162,-375.77516328,0.00020994,2]
[321800623,1712529040171,-155.59350521,0.00020994,2]
[321800624,1712529040180,-155.45869637,0.00020994,2]
[321800625,1712529040189,-930.04816714,0.00020994,2]
[321800626,1712529040199,-155.0,0.00020994,2]
[321800627,1712529040208,-155.0,0.00020994,2]
[321800628,1712529040217,-155.98437157,0.00020994,2]
[321800629,1712529040227,-502.14451424,0.00020994,2]
[321800630,1712529040236,-203.49910926,0.00020994,2]
[321800631,1712529040245,-678.37754944,0.00020994,2]
[321800632,1712529040255,-175.000275,0.00020994,2]
[321800633,1712529040265,-196.41457958,0.00020994,2]
[321800634,1712529040274,-295.47470357,0.00020994,2]
[321800635,1712529040286,-706.56929154,0.00020994,2]
[321800636,1712529040296,-209.72898488,0.00020994,2]
[321800637,1712529040305,-155.36437613,0.00020994,2]
[321800638,1712529040314,-5699099.53236271,0.00020996,2]
[321800639,1712529040324,-155.0,0.00020997,2]
[321800640,1712529040335,-1121.53852712,0.00020998,2]
[321800641,1712529040345,-304.19719016,0.00020998,2]
[321800642,1712529040354,-2246.65660745,0.00020998,2]
[321800643,1712529040367,-155.0,0.00020998,2]
[321800644,1712529040418,-155.0,0.00020998,2]
[321800645,1712529040428,-155.33703065,0.00020998,2]
[321800646,1712529040437,-155.0,0.00020998,2]
[321800647,1712529040446,-2047.13385281,0.00020998,2]
[321800648,1712529040456,-155.0,0.00020998,2]
[321800649,1712529040466,-155.3013155,0.00020998,2]
[321800651,1712529040475,-2171.75765935,0.00020998,2]
[321800652,1712529040484,-155.0,0.00020998,2]
[321800653,1712529040494,-1240.66300341,0.00020999,2]
[321800654,1712529040503,-155.0,0.00020999,2]
[321800656,1712529040513,-382.86132369,0.00020999,2]
[321800658,1712529040523,-155.0,0.00020999,2]
[321800660,1712529040531,-150.01,0.00020999,2]
[321800662,1712529040540,-2314.16086401,0.00020999,2]
[321800663,1712529040550,-6168856.21355856,0.00021,2]
[321800664,1712529040594,-13791813.40533407,0.00021,2]
[321800665,1712529040605,-2055.16,0.00021,2]
[321800666,1712529040615,-1717.61,0.00021,2]
[321800667,1712529040626,-4522830.88329823,0.00021,2]
[321800668,1712529040638,-480648.39856715,0.00021,2]
[321800669,1712529040650,-8544.62226681,0.00021,2]
[321800670,1712529040662,-3488.79,0.00021,2]
[321800675,1712529044194,-520.19700417,0.0002,2]
[321800676,1712529044205,-583.66385587,0.0002,2]
[321800677,1712529044214,-34.18992025,0.00021,2]
[321800678,1712529044256,-275.78154187,0.00021,2]
[321800679,1712529045558,-416.17551576,0.00019989,2]
[321800680,1712529045568,-416.17551576,0.0001999,2]
[321800681,1712529045578,-416.17551576,0.0001999,2]
[321800682,1712529045590,-3918.16654902,0.00021,2]
[321800683,1712529045602,-1688.19959746,0.00021,2]
[321800684,1712529045644,-2983.12572966,0.00021,2]
[321800685,1712529045660,-34359.54618624,0.00021,2]
[321800686,1712529048656,-493.706,0.00021,2]
[321800687,1712529048693,-0.14574493,0.00021,2]
[321800688,1712529049912,-15489.99979548,0.00021,2]
[321800689,1712529151316,3616.5447,0.00018,2]
[321800690,1712529187373,4930.2263236,0.00018,2]
[321800691,1712529250673,220.88,0.00019086,10]
[321800692,1712529567254,150.0,0.00017802,2]
[321800693,1712529567281,150.0,0.00017802,2]
[321800694,1712529567302,96.26,0.00017802,2]
[321800696,1712529833518,711.03,0.0003,28]
[321800699,1712529932594,150.0,0.00017935,2]
[321800700,1712529932616,150.0,0.00017935,2]
[321800701,1712529932640,150.0,0.00017935,2]
[321800702,1712529932662,64.514337,0.00017935,2]
[321800703,1712529979454,150.0,0.00017922,2]
[321800704,1712529979477,150.0,0.00017922,2]
[321800705,1712529979499,150.0,0.00017922,2]
[321800706,1712529979521,150.0,0.00017922,2]
[321800707,1712529979542,150.0,0.00017922,2]
[321800708,1712529979564,150.0,0.00017922,2]
[321800709,1712529979585,150.0,0.00017922,2]
[321800710,1712529979605,150.0,0.00017922,2]
[321800711,1712529979633,150.0,0.00017922,2]
[321800712,1712529979656,150.0,0.00017922,2]
[321800713,1712529979677,42.02282521,0.00017922,2]
[321800714,1712529990481,3063.23714709,0.00017935,2]
[321800716,1712530022896,150.0,0.00017922,2]
[321800717,1712530022919,150.0,0.00017922,2]
[321800718,1712530022942,150.0,0.00017922,2]
[321800719,1712530022963,94.65135902,0.00017922,2]
[321800720,1712530030072,150.0,0.00016603,2]
[321800721,1712530030094,150.0,0.00016603,2]
[321800722,1712530030115,99.5,0.00016603,2]
[321800724,1712530038899,50.5,0.00017922,2]
[321800725,1712530038920,238.87147877,0.00017922,2]
[321800726,1712530038940,160.62852123,0.00017922,2]
[321800727,1712530057615,750.0,0.00017922,2]
[321800728,1712530130467,816.01139797,0.00017922,2]
[321800730,1712530142180,216.73360827,0.00017905,2]
[321800731,1712530145140,-486.03849486,0.00018003,2]
[321800732,1712530145160,-360.1693026,0.00018003,2]
[321800733,1712530145180,-362.27924693,0.00018003,2]
[321800734,1712530145199,-164.08625314,0.00018004,2]
[321800735,1712530145219,-809.08158788,0.00018004,2]
[321800736,1712530145238,-616.22742246,0.00018005,2]
[321800737,1712530145258,-155.0,0.00018005,2]
[321800738,1712530145277,-201.79903001,0.00018006,2]
[321800739,1712530145297,-10346.34843278,0.00018006,2]
[321800740,1712530145329,-2559.32879751,0.00018006,2]
[321800741,1712530150455,544.00759864,0.00017922,2]
[321800744,1712530172456,453.33966554,0.00017922,2]
[321800745,1712530173090,-278.34132937,0.00018002,2]
[321800746,1712530173111,-1296.06527448,0.00018002,2]
[321800747,1712530173133,-1042.90820021,0.00018002,2]
[321800748,1712530173154,-404.64904751,0.00018003,2]
[321800749,1712530173175,-3074.28595733,0.00018005,2]
[321800750,1712530173194,-1392.7168371,0.00018006,2]
[321800751,1712530185902,-180.68788228,0.00018,2]
[321800753,1712530192458,236.18996574,0.00017922,2]
[321800754,1712530206470,236.18996574,0.00017922,2]
[321800756,1712530228487,236.18996574,0.00017922,2]
[321800759,1712530232198,-5375.52133588,0.00018001,2]
[321800760,1712530232207,-8995.14399249,0.00018006,2]
[321800761,1712530232216,-150.0,0.00018011,2]
[321800762,1712530232226,-539.37731829,0.00018025,2]
[321800763,1712530232236,-150.0,0.00018027,2]
[321800764,1712530232245,-1340.14,0.00018448,2]
[321800765,1712530232255,-966.53,0.00018449,2]
[321800766,1712530232264,-1100.0,0.00018451,2]
[321800767,1712530232274,-2063.62,0.00018492,2]
[321800768,1712530232283,-3312.38,0.00018496,2]
[321800769,1712530232293,-840.58,0.00018498,2]
[321800770,1712530232303,-184.47,0.00018506,2]
[321800771,1712530232312,-1819.84,0.00018506,2]
[321800772,1712530232323,-250.0,0.00018512,2]
[321800773,1712530232333,-634.72,0.00018545,2]
[321800774,1712530232344,-168.59,0.00018713,2]
[321800775,1712530232355,-168.59,0.00018764,2]
[321800776,1712530232365,-300.0,0.00018797,2]
[321800777,1712530232374,-168.59,0.00018816,2]
[321800778,1712530232383,-399.5,0.00018867,2]
[321800779,1712530232392,-168.59,0.00018867,2]
[321800780,1712530232402,-431.37210144,0.00018897,2]
[321800781,1712530232411,-499.99,0.00018897,2]
[321800782,1712530232421,-168.59,0.00018918,2]
[321800783,1712530232430,-1000.0,0.00018957,2]
[321800784,1712530232439,-168.59,0.00018969,2]
[321800785,1712530232450,-1750.0,0.00019,3]
[321800786,1712530232462,-168.59,0.00019021,2]
[321800787,1712530232471,-168.59,0.00019072,2]
[321800789,1712530232480,-168.59,0.00019123,2]
[321800791,1712530232490,-168.59,0.00019175,2]
[321800793,1712530232500,-3860.3242363,0.000192,2]
[321800794,1712530232509,-168.59,0.00019226,2]
[321800795,1712530232518,-168.59,0.00019277,2]
[321800796,1712530232527,-168.59,0.00019329,2]
[321800797,1712530232536,-168.59,0.0001938,2]
[321800798,1712530232545,-168.59,0.00019431,2]
[321800799,1712530232554,-163.31,0.00019474,2]
[321800800,1712530232563,-163.31,0.00019479,2]
[321800801,1712530232573,-168.59,0.00019483,2]
[321800802,1712530232583,-163.31,0.00019484,2]
[321800803,1712530232592,-163.31,0.00019489,2]
[321800804,1712530232601,-163.31,0.00019494,2]
[321800805,1712530232610,-163.31,0.00019499,2]
[321800806,1712530232620,-163.31,0.00019504,2]
[321800807,1712530232629,-163.31,0.00019509,2]
[321800808,1712530232639,-163.31,0.00019515,2]
[321800809,1712530232651,-163.31,0.0001952,2]
[321800810,1712530232661,-163.31,0.00019525,2]
[321800811,1712530232670,-163.31,0.0001953,2]
[321800812,1712530232680,-168.59,0.00019534,2]
[321800813,1712530232690,-163.31,0.00019535,2]
[321800814,1712530232699,-163.31,0.0001954,2]
[321800815,1712530232708,-163.31,0.00019545,2]
[321800816,1712530232718,-163.31,0.0001955,2]
[321800817,1712530232728,-163.31,0.00019556,2]
[321800818,1712530232740,-163.31,0.00019561,2]
[321800819,1712530232749,-163.31,0.00019566,2]
[321800820,1712530232760,-163.31,0.00019571,2]
[321800821,1712530232769,-168.59,0.00019585,2]
[321800822,1712530232778,-168.59,0.00019637,2]
[321800823,1712530232787,-168.59,0.00019688,2]
[321800824,1712530232797,-200.0,0.0001972,2]
[321800825,1712530232806,-208.0,0.00019813,2]
[321800826,1712530232816,-3741.063,0.00019866,2]
[321800827,1712530232826,-1743.70839054,0.0002,2]
[321800828,1712530232838,-1762.27300257,0.0002,2]
[321800829,1712530232848,-150.0,0.000205,2]
[321800830,1712530232860,-535.0,0.0002052,2]
[321800831,1712530232870,-153.59,0.00020609,2]
[321800832,1712530232879,-166.97,0.00020609,2]
[321800833,1712530232888,-178.43504476,0.0002079,2]
[321800834,1712530232897,-5800.0,0.00020791,2]
[321800835,1712530232907,-241.67383217,0.00020799,2]
[321800836,1712530232916,-2249.80422649,0.00020799,2]
[321800837,1712530232925,-200.0,0.00020832,2]
[321800838,1712530232934,-800.0,0.00020832,2]
[321800839,1712530232943,-500.0,0.00020832,2]
[321800840,1712530232952,-519.51495643,0.00020896,2]
[321800841,1712530232961,-800.15955221,0.00020896,2]
[321800842,1712530232970,-372.22835264,0.00020896,2]
[321800843,1712530232979,-155.0,0.00020896,2]
[321800844,1712530232988,-201.44174253,0.00020896,2]
[321800845,1712530232997,-500.0,0.00020896,2]
[321800846,1712530233007,-164.41383793,0.00020896,2]
[321800847,1712530233017,-326.96689978,0.00020896,2]
[321800848,1712530233026,-253.48354368,0.00020896,2]
[321800849,1712530233035,-1361.3464204,0.00020896,2]
[321800850,1712530233045,-155.35821548,0.00020896,2]
[321800851,1712530233054,-180.68788228,0.00020896,2]
[321800852,1712530233063,-226.49080462,0.00020897,2]
[321800853,1712530233073,-3074.28595733,0.00020897,2]
[321800854,1712530233082,-255242.68177633,0.00020898,2]
[321800855,1712530233095,-322.91174239,0.00020898,2]
[321800856,1712530233178,-314.61048587,0.00020898,2]
[321800857,1712530233190,-5433.17921876,0.00020898,2]
[321800952,1712530238818,-589.82495082,0.00020896,2]
[321800954,1712530238827,-159825.32530734,0.00020898,2]
[321800956,1712530238837,-730.5183,0.00020899,2]
[321800958,1712530238846,-194.43652152,0.000209,2]
[321800960,1712530238855,-1339.66442528,0.000209,2]
[321800962,1712530238864,-157.040807,0.00020908,2]
[321800964,1712530238873,-157.040807,0.00020908,2]
[321800966,1712530238882,-157.040807,0.00020908,2]
[321800968,1712530238891,-157.040807,0.00020908,2]
[321800970,1712530238900,-157.040807,0.00020908,2]
[321800972,1712530238910,-157.040807,0.00020908,2]
[321800974,1712530238919,-157.040807,0.00020908,2]
[321800976,1712530238928,-157.040807,0.00020908,2]
[321800978,1712530238937,-157.040807,0.00020908,2]
[321800980,1712530238946,-157.040807,0.00020908,2]
[321800982,1712530238955,-524.62106483,0.00020996,2]
[321800983,1712530238964,-344.34624738,0.00020997,2]
[321800984,1712530238973,-156.10100077,0.00020997,2]
[321800985,1712530238982,-460.58467927,0.00020998,2]
[321800986,1712530238991,-521.52182526,0.00020998,2]
[321800988,1712530239000,-299.98497647,0.00020998,2]
[321800990,1712530239010,-166.27486026,0.00020998,2]
[321800992,1712530239019,-267.81060536,0.00020998,2]
[321800994,1712530239029,-318.9771142,0.00020998,2]
[321800996,1712530239038,-400.0,0.00020998,2]
[321800998,1712530239047,-289.58863786,0.00020998,2]
[321801000,1712530239056,-3123.01868018,0.00020998,2]
[321801002,1712530239065,-4944.91836889,0.00020998,2]
[321801004,1712530239075,-2576.20028836,0.00020998,2]
[321801006,1712530239084,-177.62322885,0.00020998,2]
[321801007,1712530239093,-339.76449441,0.00020998,2]
[321801008,1712530239102,-837.32990232,0.00020998,2]
[321801009,1712530239114,-1511.89811182,0.00020998,2]
[321801010,1712530239123,-156.01991778,0.00020998,2]
[321801011,1712530239132,-194.50731066,0.00020998,2]
[321801012,1712530239141,-52314.94527207,0.00020998,2]
[321801013,1712530239150,-9225.6422032,0.00020998,2]
[321801014,1712530239407,-373846.81657955,0.00020998,2]
[321801015,1712530239417,-551.93043002,0.00020999,2]
[321801016,1712530239426,-345342.54443759,0.00020999,2]
[321801017,1712530239435,-2314.16086401,0.00020999,2]
[321801018,1712530239445,-297.25185244,0.00020999,2]
[321801019,1712530239454,-1267881.52205712,0.00020999,2]
[321801020,1712530239463,-150.01,0.00020999,2]
[321801021,1712530239472,-4178471.97733778,0.00021,2]
[321801022,1712530239483,-562628.04740728,0.00021,2]
[321801023,1712530239492,-2875.86637624,0.00021,2]
[321801024,1712530239502,-500.0,0.00021,2]
[321801025,1712530239512,-200.0,0.00021,2]
[321801026,1712530239521,-500.0,0.00021,2]
[321801027,1712530239530,-500.0,0.00021,2]
[321801028,1712530239539,-500.0,0.00021,2]
[321801029,1712530239548,-200.0,0.00021,2]
[321801030,1712530239557,-500.0,0.00021,2]
[321801031,1712530239566,-500.0,0.00021,2]
[321801032,1712530239575,-500.0,0.00021,2]
[321801033,1712530239584,-200.0,0.00021,2]
[321801034,1712530239593,-500.0,0.00021,2]
[321801035,1712530239602,-500.0,0.00021,2]
[321801036,1712530239612,-500.0,0.00021,2]
[321801037,1712530239621,-200.0,0.00021,2]
[321801038,1712530239630,-500.0,0.00021,2]
[321801039,1712530239640,-500.0,0.00021,2]
[321801040,1712530239652,-500.0,0.00021,2]
[321801041,1712530239661,-200.0,0.00021,2]
[321801042,1712530239670,-500.0,0.00021,2]
[321801043,1712530239679,-200.0,0.00021,2]
[321801044,1712530239689,-500.0,0.00021,2]
[321801045,1712530239698,-500.0,0.00021,2]
[321801046,1712530239706,-500.0,0.00021,2]
[321801047,1712530239716,-500.0,0.00021,2]
[321801048,1712530239725,-200.0,0.00021,2]
[321801049,1712530239735,-500.0,0.00021,2]
[321801050,1712530239743,-500.0,0.00021,2]
[321801051,1712530239752,-200.0,0.00021,2]
[321801052,1712530239763,-500.0,0.00021,2]
[321801053,1712530239772,-500.0,0.00021,2]
[321801054,1712530239781,-200.0,0.00021,2]
[321801055,1712530239790,-770.0,0.00021,2]
[321801056,1712530239799,-554.0,0.00021,2]
[321801057,1712530239808,-500.0,0.00021,2]
[321801058,1712530239817,-200.0,0.00021,2]
[321801059,1712530239826,-500.0,0.00021,2]
[321801060,1712530239835,-200.0,0.00021,2]
[321801061,1712530239844,-500.0,0.00021,2]
[321801063,1712530239853,-500.0,0.00021,2]
[321801065,1712530239862,-200.0,0.00021,2]
[321801067,1712530239871,-500.0,0.00021,2]
[321801069,1712530239880,-200.0,0.00021,2]
[321801071,1712530239890,-500.0,0.00021,2]
[321801072,1712530239900,-369.0,0.00021,2]
[321801074,1712530239909,-500.0,0.00021,2]
[321801076,1712530239918,-500.0,0.00021,2]
[321801078,1712530239927,-500.0,0.00021,2]
[321801080,1712530239936,-500.0,0.00021,2]
[321801082,1712530239945,-500.0,0.00021,2]
[321801084,1712530239954,-753.0,0.00021,2]
[321801086,1712530239963,-160.48399293,0.00021,2]
[321801087,1712530239972,-212.74496021,0.00021,2]
[321801089,1712530239982,-613.62466298,0.00021,2]
[321801091,1712530239991,-750.0,0.00021,2]
[321801093,1712530240000,-2055.16,0.00021,2]
[321801095,1712530240011,-1717.61,0.00021,2]
[321801097,1712530240020,-2000.0,0.00021,2]
[321801099,1712530240030,-200.0,0.00021,2]
[321801101,1712530240039,-2000.0,0.00021,2]
[321801103,1712530240049,-200.0,0.00021,2]
[321801105,1712530240059,-1800.0,0.00021,3]
[321801107,1712530240068,-150.0,0.00021,2]
[321801109,1712530240078,-1308.07527,0.00021,2]
[321801111,1712530240088,-3807.627359,0.00021002,2]
[321801113,1712530240097,-30889.9719837,0.00021002,2]
[321801116,1712530240107,-10951.0,0.00021016,2]
[321801118,1712530240119,-11175.0,0.00021038,2]
[321801121,1712530240128,-399.5,0.0002113,2]
[321801124,1712530240137,-350.0,0.000212,2]
[321801127,1712530240147,-2923.0,0.000212,2]
[321801129,1712530240157,-2000.0,0.0002121,2]
[321801131,1712530240169,-200.0,0.0002121,2]
[321801134,1712530240179,-2000.0,0.0002121,2]
[321801136,1712530240189,-200.0,0.0002121,2]
[321801138,1712530240198,-2063.62,0.00021232,2]
[321801140,1712530240208,-2249.8042264,0.00021247,2]
[321801141,1712530240218,-1316.08796977,0.00021314,2]
[321801143,1712530240228,-1000.0,0.00021327,2]
[321801145,1712530240237,-2431.0,0.00021388,2]
[321801147,1712530240246,-965.0,0.00021388,2]
[321801149,1712530240255,-1387.0,0.00021388,2]
[321801151,1712530240265,-460.0,0.00021388,2]
[321801153,1712530240275,-1944.0,0.00021388,2]
[321801155,1712530240285,-435.0,0.00021388,2]
[321801157,1712530240295,-804.0,0.00021388,2]
[321801159,1712530240307,-396.0,0.00021388,2]
[321801161,1712530240318,-163.028,0.00021388,2]
[321801163,1712530240328,-1130.0,0.00021388,2]
[321801164,1712530240337,-559.424,0.00021388,2]
[321801166,1712530240346,-150.0,0.00021388,2]
[321801168,1712530240355,-214.0,0.00021388,2]
[321801169,1712530240364,-487.544,0.00021388,2]
[321801171,1712530240375,-37530.0,0.00021388,2]
[321801173,1712530240384,-2460.0,0.00021388,2]
[321801175,1712530240394,-5705.0,0.00021388,2]
[321801176,1712530240403,-4792.0,0.00021388,2]
[321801178,1712530240414,-1312.0,0.00021388,2]
[321801180,1712530240426,-150.0,0.00021388,2]
[321801182,1712530240436,-2000.0,0.00021422,2]
[321801184,1712530240446,-200.0,0.00021422,2]
[321801185,1712530240456,-2000.0,0.00021422,2]
[321801187,1712530240467,-200.0,0.00021422,2]
[321801189,1712530240477,-150.0,0.000215,2]
[321801191,1712530240486,-167.02,0.00021541,2]
[321801192,1712530240495,-2000.0,0.00021636,2]
[321801194,1712530240504,-200.0,0.00021636,2]
[321801196,1712530240513,-2000.0,0.00021636,2]
[321801198,1712530240522,-200.0,0.00021636,2]
[321801200,1712530240531,-2249.8042264,0.00021695,2]
[321801202,1712530240540,-2000.0,0.00021853,2]
[321801205,1712530240549,-200.0,0.00021853,2]
[321801208,1712530240558,-2000.0,0.00021853,2]
[321801210,1712530240567,-200.0,0.00021853,2]
[321801213,1712530240577,-150.0,0.000219,2]
[321801216,1712530240586,-394.0,0.000219,2]
[321801219,1712530240595,-207.88455727,0.000219,2]
[321801221,1712530240603,-790.59438754,0.000219,2]
[321801224,1712530240613,-1308.42569049,0.000219,2]
[321801227,1712530240621,-1308.42569049,0.000219,2]
[321801230,1712530240631,-1308.42569049,0.000219,2]
[321801232,1712530240640,-1308.42569049,0.000219,2]
[321801235,1712530240651,-1308.42569049,0.000219,2]
[321801238,1712530240660,-1308.42569049,0.000219,2]
[321801240,1712530240669,-1308.42569049,0.000219,2]
[321801241,1712530240678,-1308.42569049,0.000219,2]
[321801243,1712530240688,-1308.42569049,0.000219,2]
[321801245,1712530240697,-1308.42569049,0.000219,2]
[321801246,1712530240706,-1308.42569049,0.000219,2]
[321801248,1712530240716,-1308.42569049,0.000219,2]
[321801250,1712530240726,-1308.42569049,0.000219,2]
[321801252,1712530240735,-1308.42569049,0.000219,2]
[321801253,1712530240744,-1308.42569049,0.000219,2]
[321801255,1712530240753,-1308.42569049,0.000219,2]
[321801257,1712530240763,-1308.42569049,0.000219,2]
[321801259,1712530240773,-1308.42569049,0.000219,2]
[321801261,1712530240782,-1308.42569049,0.000219,2]
[321801263,1712530240791,-1308.42569049,0.000219,2]
[321801264,1712530240800,-1308.42569049,0.000219,2]
[321801266,1712530240810,-1308.42569049,0.000219,2]
[321801268,1712530240819,-1308.42569049,0.000219,2]
[321801270,1712530240828,-1308.42569049,0.000219,2]
[321801271,1712530240837,-1308.42569049,0.000219,2]
[321801273,1712530240846,-1308.42569049,0.000219,2]
[321801275,1712530240855,-1308.42569049,0.000219,2]
[321801277,1712530240865,-1308.42569049,0.000219,2]
[321801279,1712530240875,-1308.42569049,0.000219,2]
[321801281,1712530240885,-1308.42569049,0.000219,2]
[321801283,1712530240894,-500.0,0.00021918,7]
[321801284,1712530240903,-250.0,0.00021918,2]
[321801286,1712530240913,-1308.07528,0.0002193,2]
[321801288,1712530240921,-500.0,0.00021999,2]
[321801289,1712530240931,-282.01193994,0.00022,2]
[321801291,1712530240940,-155.81747597,0.00022,2]
[321801293,1712530240949,-77335.8383752,0.00022,2]
[321801294,1712530240960,-640.50173907,0.00022,2]
[321801295,1712530240969,-783.28322174,0.00022,2]
[321801296,1712530240978,-7716.7803221,0.00022,2]
[321801297,1712530240987,-272.97382694,0.00022,2]
[321801298,1712530240997,-238.56205194,0.00022,2]
[321801299,1712530241007,-1053.7260208,0.00022,2]
[321801300,1712530241016,-951.85392236,0.00022,2]
[321801302,1712530241026,-150.0,0.00022,2]
[321801304,1712530241035,-170.0,0.00022,2]
[321801306,1712530241044,-151.88,0.00022242,2]
[321801307,1712530241053,-150.0,0.00022242,2]
[321801309,1712530241063,-150.0,0.00022242,2]
[321801311,1712530241072,-25667.9502715,0.000225,2]
[321801313,1712530241081,-150.0,0.000225,2]
[321801316,1712530241090,-424.56,0.0002263,2]
[321801318,1712530241100,-500.0,0.0002278,2]
[321801320,1712530241109,-500.0,0.0002278,2]
[321801322,1712530241118,-500.0,0.0002278,2]
[321801323,1712530241128,-500.0,0.0002278,2]
[321801325,1712530241137,-1000.0,0.0002278,2]
[321801327,1712530241146,-165.0,0.0002285,2]
[321801329,1712530241156,-194.43652152,0.00022866,2]
[321801331,1712530241171,-1339.66442527,0.00022866,2]
[321801333,1712530241189,-247823.40635672,0.000229,2]
[321801335,1712530241207,-2055.16,0.000229,2]
[321801337,1712530241216,-1717.61,0.000229,2]
[321801339,1712530241226,-320146.26293092,0.0002299,3]